Cogmind - Beta 15 @@@ ROGUE MODE // 2025.07.04 @ 21:02:48 Player: 7604 Result: Destroyed by P-70 Sage with High-powered Shock Rifle Performance ------------- Evolutions (5) 2500 Regions Visited (7) 1400 Robots Destroyed (33) 165 Value Destroyed (795) 795 Prototype IDs (25) 500 Alien Tech Used (0) 0 Bonus (3028) 3028 TOTAL SCORE: 8388 Bonus ------- Follower Combat Kills 228 Delivered SUBCON Basin 2000 Registered with UFD 300 Met Optimus in HQ 500 Cogmind --------- Core Integrity 0/1000 Matter 208/300 Energy 100/100 System Corruption 3% Temperature Cool (0) Movement Core (50) Location -5/Factory Parts ------- > --- POWER (1) -------- (None) > --- PROPULSION (5) --- (None) > --- UTILITY (9) ------ Machine Analyzer Spectral Analyzer Improved Signal Interpreter A0-MCA's Component Scanner Tech Extrapolator > --- WEAPON (2) ------- Scythe > --- INVENTORY (5) ---- Angular Momentum Engine Improved Transmission Jammer Advanced ECM Suite Improved Plasma Cutter Peak State ------------ > --- POWER ------------ Micro Fission Core > --- PROPULSION ------- Xenon Bombardment Thruster Xenon Bombardment Thruster Xenon Bombardment Thruster Xenon Bombardment Thruster Makeshift Flight Unit > --- UTILITY ---------- Large Storage Unit Machine Analyzer Improved Sensor Array Improved Signal Interpreter Advanced Terrain Scanner Improved Propulsion Shielding Experimental Utility Shielding Makeshift Hacking Suite System Shield > --- WEAPON ----------- Multitool Makeshift Sword > --- INVENTORY -------- Light Nuclear Core VTOL Module Spectral Analyzer Seismic Detector Improved Kinecellerator Improved Transmission Jammer Advanced ECM Suite Improved Light Armor Plating A0-MCA's Component Scanner Tech Extrapolator Cooled Plasma Rifle Hardcell Cannon Subdweller Shrapnel Launcher Datajack Lance [Rating: 70] Favorites ----------- Power Subdweller Power Source Engine Subdweller Power Source Power Core Nuclear Core Propulsion Light Treads Treads Light Treads Flight Unit Xenon Bombardment Thruster Utility Huge Storage Unit Device Seismic Detector Storage Huge Storage Unit Processor Machine Analyzer Hackware Makeshift Hacking Suite Protection Improved Propulsion Shielding Weapon Subdweller Beam Cannon Energy Gun Medium Laser Energy Cannon Subdweller Beam Cannon Ballistic Gun Assault Rifle Ballistic Cannon Light Cannon Launcher Subdweller Shrapnel Launcher Special Weapon Mining Laser Slashing Weapon Makeshift Sword Special Melee Weapon Datajack Build | -11 -10 -10 -7 -7 -5 -5 -5 ------- Run | Yrd Mat Sub Rec Scr Fac Was Fac Slots Evolved 10 | . . . . . 10 . . Power . | . . . . . . . . Propulsion 3 | . . . . . 3 . . Utility 7 | . . . . . 7 . . Weapon . | . . . . . . . . Parts Attached 67 | 7 11 10 1 6 30 2 . Power 7 | 1 1 1 . 2 2 . . Engine 3 | 1 1 1 . . . . . Core 4 | . . . . 2 2 . . Reactor . | . . . . . . . . Propulsion 15 | 2 1 2 1 . 7 2 . Treads 6 | 2 1 2 1 . . . . Leg . | . . . . . . . . Wheel . | . . . . . . . . Hover . | . . . . . . . . Flight 9 | . . . . . 7 2 . Utility 24 | 2 4 2 . 1 15 . . Device 9 | 1 2 2 . . 4 . . Storage 4 | 1 1 . . 1 1 . . Processor 5 | . . . . . 5 . . Hackware 2 | . . . . . 2 . . Protection 4 | . 1 . . . 3 . . Artifact . | . . . . . . . . Weapon 21 | 2 5 5 . 3 6 . . Energy Gun 2 | 1 . . . . 1 . . Energy Cannon 4 | . . 4 . . . . . Ballistic Gun 4 | 1 2 . . . 1 . . Ballistic Cannon 3 | . 2 . . . 1 . . Launcher 1 | . . 1 . . . . . Special Weapon 2 | . 1 . . . 1 . . Impact Weapon . | . . . . . . . . Slashing Weapon 4 | . . . . 2 2 . . Piercing Weapon . | . . . . . . . . Special Melee Weapon 1 | . . . . 1 . . . Unidentified Prototypes 5 | . . 1 . . 4 . . Parts Lost 24 | . 4 2 . . 17 . 1 Power 2 | . 1 . . . 1 . . Propulsion 9 | . 1 1 . . 7 . . Utility 7 | . . . . . 6 . 1 Weapon 6 | . 2 1 . . 3 . . Highest Loss Streak 11 | . 3 2 . . 11 . 1 To Critical Strikes . | . . . . . . . . Average Backups 18 | 1 11 18 17 23 12 4 4 Power . | . . . . 1 . 1 1 Propulsion 3 | . . 2 3 5 1 . . Utility 5 | . 3 4 5 9 6 2 2 Weapon 6 | . 7 9 5 4 2 . . Tool/Special . | . . . . . . . . Unused Backups 41 | . . 11 . 20 7 . 3 Power 3 | . . 1 . 1 . . 1 Propulsion 6 | . . 1 . 4 1 . . Utility 10 | . . 1 . 5 3 . 1 Weapon 18 | . . 8 . 7 3 . . Tool/Special 4 | . . . . 3 . . 1 Average Slot Usage (%) 98 | . 99 99 100 98 83 50 49 Engine 9 | . 14 14 14 2 . . . Core 3 | . . . . 11 4 . . Treads 26 | . 27 28 28 28 . . . Flight 1 | . . . . . 24 8 9 Device 13 | . 13 13 14 14 8 . . Storage 13 | . 14 14 14 14 4 . . Energy Gun 1 | . 5 . . . . . . Energy Cannon 13 | . . 19 28 6 . . . Ballistic Gun 1 | . 13 . . . . . . Ballistic Cannon 3 | . 7 6 . . . . . Slashing Weapon 3 | . . . . 10 4 5 5 Special Melee Weapon 2 | . . . . 9 3 . . Peak Build Rating 70 | 7 10 32 30 21 70 69 69 Average Rating 19 | 4 8 18 19 19 55 63 63 On Entrance 23 | . 7 9 30 17 18 39 69 Naked Turns . | . . . . . . . . Heaviest Build 104 | 12 92 102 102 104 43 2 2 Greatest Support 40 | 40 40 40 40 40 32 15 15 Greatest Overweight (x) 2 | . 2 2 2 2 1 . . Average Overweight (x) 1 | . 1 2 2 1 . . . Largest Inventory Capacity 25 | 8 25 25 25 25 15 5 5 Average Capacity 23 | 7 20 25 25 24 13 5 5 Most Carried 25 | 4 20 25 25 25 15 4 4 Average Carried 20 | 1 11 23 21 23 12 4 4 Final Capacity 25 | 8 25 25 25 15 5 5 5 Final Carried 25 | 4 20 25 25 15 4 4 4 Class Distribution -------------------- 87% | Mutant 6% | Commander-Mutant 3% | Hacker-Scout Dominant Class ---------------- Mutant | -10/Materials Mutant | -10/Subcaves Mutant | -7/Recycling Mutant | -7/Scraptown Hacker-Scout | -5/Factory Mutant | -5/Waste Mutant | -5/Factory Resources | -11 -10 -10 -7 -7 -5 -5 -5 ----------- Run | Yrd Mat Sub Rec Scr Fac Was Fac Matter Collected 1538 | 157 465 346 20 40 510 . . Remotely . | . . . . . . . . Salvage Created 1469 | 16 496 184 229 . 486 . 58 Parts 85 | 4 36 9 11 . 24 . 1 Haulers Intercepted 4 | . 2 . . . 2 . . Recyclers Shooed 1 | 1 . . . . . . . Parts Field Recycled . | . . . . . . . . Retrieved Matter . | . . . . . . . . Parts Self-Destructed 23 | . . 23 . . . . . Prevented . | . . . . . . . . Kills | -11 -10 -10 -7 -7 -5 -5 -5 ------- Run | Yrd Mat Sub Rec Scr Fac Was Fac Combat Hostiles Destroyed 19 | . 11 2 2 . 3 . 1 Melee 2 | . . . . . 1 . 1 Guns 7 | . 7 . . . . . . Cannons 7 | . 4 2 1 . . . . AOE 2 | . . . . . 2 . . Classes Destroyed 11 | 1 5 2 1 . 1 . 1 Builder 4 | . . . . . 4 . . Tunneler 1 | 1 . . . . . . . Hauler 4 | . 2 . . . 2 . . Recycler 2 | . 1 . . . 1 . . Watcher 3 | . 3 . . . . . . Swarmer 7 | . 3 1 . . 3 . . Grunt 8 | . 8 . . . . . . Sentry 2 | . . . 2 . . . . Programmer 1 | . . . . . . . 1 Artisan 1 | . . 1 . . . . . Subdweller 1 | . . 1 . . . . . Best Kill Streak 3 | 1 3 1 1 . 2 . 1 Combat Bots Only 3 | . 3 1 1 . 2 . 1 Max Kills in Single Turn 2 | 1 1 1 1 . 2 . 1 Gunslinging . | . . . . . . . . Exploded 2 | . . . . . 2 . . Melee 1 | . . . . . 1 . 1 Uniques/NPCs Destroyed . | . . . . . . . . Combat | -11 -10 -10 -7 -7 -5 -5 -5 -------- Run | Yrd Mat Sub Rec Scr Fac Was Fac Hostile Shots Fired 321 | . 73 31 9 . 182 . 26 Missed 109 | . 16 17 5 . 62 . 9 Hits 212 | . 57 14 4 . 120 . 17 Projectile 212 | . 57 14 4 . 120 . 17 Critical Strikes 11 | . 5 1 . . 3 . 2 Damage Taken 3151 | . 748 288 29 . 1746 . 340 Core 1165 | . 88 55 6 . 755 . 261 Absorbed by Shields 59 | . . . . . 59 . . Redirected to Shielding 218 | . . . . . 218 . . Core Remaining (%) 70 | 100 . . . 40 . . . Volleys Fired 114 | 2 52 41 9 . 10 . . Largest 2 | 2 2 2 2 . 1 . . Hottest 160 | 70 100 160 160 . 55 . . Shots Fired 184 | 4 102 57 12 . 9 . . Gun 79 | 4 72 3 . . . . . Cannon 97 | . 28 51 12 . 6 . . Launcher 6 | . . 3 . . 3 . . Special 2 | . 2 . . . . . . Kinetic 112 | 2 82 19 . . 9 . . Thermal 72 | 2 20 38 12 . . . . Explosive . | . . . . . . . . Electromagnetic . | . . . . . . . . Robot Hit Streak 16 | 1 8 16 5 . 1 . . Robot Miss Streak 4 | 1 4 4 2 . 2 . . Penetration Max . | . . . . . . . . Secondary Targets 1 | . 1 . . . . . . Max Gunslinging Chain 1 | . 1 . . . . . . Shots Hit Robots 131 | 2 58 23 6 3 29 . 10 Core Hits 49 | 1 27 7 3 . 10 . 1 Critical Kills 2 | . 1 . 1 . . . . Critical Parts Destroyed . | . . . . . . . . Critical Strikes 6 | 1 2 . 1 . 1 . 1 Burn 1 | 1 . . . . . . . Meltdown 1 | . . . 1 . . . . Destroy 1 | . 1 . . . . . . Blast 1 | . 1 . . . . . . Sever 2 | . . . . . 1 . 1 Melee Attacks 76 | . . . . 3 58 . 15 Impact . | . . . . . . . . Slashing 64 | . . . . . 49 . 15 Piercing . | . . . . . . . . Sneak Attacks 21 | . . . . 3 17 . 1 Combat Hostiles . | . . . . . . . . Follow-up Attacks . | . . . . . . . . Damage Inflicted 3397 | 23 854 491 250 . 1439 . 340 Guns 543 | 23 520 . . . . . . Cannons 1096 | . 334 491 213 . 58 . . Explosions 325 | . . . . . 325 . . Melee 1396 | . . . . . 1056 . 340 Ramming 37 | . . . 37 . . . . Kinetic 1403 | 10 744 266 . . 383 . . Thermal 561 | 13 110 225 213 . . . . Explosive . | . . . . . . . . Electromagnetic . | . . . . . . . . Impact . | . . . . . . . . Slashing 1396 | . . . . . 1056 . 340 Piercing . | . . . . . . . . Highest Corruption 3 | . . . . . . . 3 Average Corruption 2 | . . . . . . . 2 Corruption Purged . | . . . . . . . . Corruption Blocked . | . . . . . . . . Effects 2 | . . . . . . . 2 Data Loss (minor) 2 | . . . . . . . 2 Overload Shots . | . . . . . . . . Overflow Damage 297 | . . . 18 . 219 . 60 Projectiles 18 | . . . 18 . . . . Explosions 15 | . . . . . 15 . . Melee 264 | . . . . . 204 . 60 Knockbacks 10 | . 4 5 . . 1 . . Impact . | . . . . . . . . Kinetic 9 | . 3 5 . . 1 . . Secondary 1 | . 1 . . . . . . Self-Inflicted Damage 24 | . . 24 . . . . . Shots 1 | . . 1 . . . . . Rammed 5 | . . . 5 . . . . Targets Rammed 5 | . . . 5 . . . . Kicked . | . . . . . . . . Crushed . | . . . . . . . . Highest Temperature 257 | 40 257 24 234 . 84 . . Average Temperature 56 | 20 61 13 91 . 40 . . Received Heat Transfer 543 | . 447 78 6 . 12 . . Siege Activations . | . . . . . . . . Martial Activations . | . . . . . . . . Shielding Activations . | . . . . . . . . Robots Disrupted . | . . . . . . . . Combat Hostiles . | . . . . . . . . Robots Corrupted . | . . . . . . . . Combat Hostiles . | . . . . . . . . Parts Fried . | . . . . . . . . Impact Corruptions . | . . . . . . . . Robots Melted 1 | . . . 1 . . . . Combat Hostiles 1 | . . . 1 . . . . Parts Melted 2 | . . 1 1 . . . . Heat Transferred 999 | 111 333 296 259 . . . . Parts Sabotaged . | . . . . . . . . Parts Stolen . | . . . . . . . . Parts Stripped . | . . . . . . . . Power Chain Reactions . | . . . . . . . . Alert | -11 -10 -10 -7 -7 -5 -5 -5 ------- Run | Yrd Mat Sub Rec Scr Fac Was Fac Maximum Alert Level . | . . . . . . . . Low Security (%) 100 | 100 100 . 100 . 100 100 100 Level 1 . | . . . . . . . . Level 2 . | . . . . . . . . Level 3 . | . . . . . . . . Level 4 . | . . . . . . . . Level 5 . | . . . . . . . . High Security . | . . . . . . . . Max Security . | . . . . . . . . Peak Influence 196 | 5 76 . 59 . 196 9 30 Initial 19 | . 3 . 19 . . 9 . Average 24 | 1 19 . 13 . 74 2 2 Influence Increases 1596 | 5 424 267 304 . 566 . 30 Destroy 0b10 Robot/C 560 | . 220 160 60 . 100 . 20 Destroy 0b10 Robot/NC 90 | 5 30 . 15 . 40 . . Destroy Leader 106 | . 70 10 . . 16 . 10 Allied During Kill 56 | . . 37 6 . 13 . . Trap Triggered on 0b10 10 | . . . . . 10 . . Successful Hack 73 | . 55 . 10 . 8 . . Select Force Hacks 240 | . 30 . 210 . . . . Disable Machine 30 | . . . . . 30 . . Destroy Structure 131 | . 4 . 3 . 124 . . Partial Spotted 60 | . . . . . 60 . . Lose Combat Pursuer 240 | . 15 60 . . 165 . . Influence Decreases 1566 | . 413 242 342 3 540 26 . Entered New Map 52 | . 2 8 22 3 . 17 . Time Decay 1073 | . 394 114 284 . 272 9 . Lost Part 95 | . 17 . . . 78 . . Lost Ally 196 | . . 120 36 . 40 . . Purge Threat 150 | . . . . . 150 . . Squads Dispatched 12 | . 2 . . . 9 . 1 Investigation 7 | . 1 . . . 6 . . Extermination 2 | . . . . . 2 . . Reinforcement 3 | . 1 . . . 1 . 1 Assault . | . . . . . . . . Garrison . | . . . . . . . . Intercept . | . . . . . . . . Searches Triggered . | . . . . . . . . Construction Impeded . | . . . . . . . . Haulers Reinforced 1 | . . . . . 1 . . Active Scanning Responses . | . . . . . . . . Cargo Convoy Interrupts . | . . . . . . . . Stealth | -11 -10 -10 -7 -7 -5 -5 -5 --------- Run | Yrd Mat Sub Rec Scr Fac Was Fac Distress Signals 4 | . . . 1 . 2 . 1 Communications Jammed . | . . . . . . . . Distress Signals . | . . . . . . . . Times Spotted 89 | . 25 20 4 . 33 4 3 Peak Tracking Total 10 | . 5 4 2 . 10 5 2 Tactical Retreats 8 | . 1 1 . . 6 . . Traps | -11 -10 -10 -7 -7 -5 -5 -5 ------- Run | Yrd Mat Sub Rec Scr Fac Was Fac Traps Triggered 1 | . . . . . 1 . . Indirectly . | . . . . . . . . Trap Hack Attempts 19 | . . . . . 19 . . Triggered . | . . . . . . . . Disarmed 2 | . . . . . 2 . . Reprogrammed 4 | . . . . . 4 . . Reused 1 | . . . . . 1 . . Traps Extracted . | . . . . . . . . Installed . | . . . . . . . . Triggered 1 | . . . . . 1 . . Machines | -11 -10 -10 -7 -7 -5 -5 -5 ---------- Run | Yrd Mat Sub Rec Scr Fac Was Fac Machines Disabled 4 | . . 2 . . 2 . . Max in Single Turn 1 | . . . . . 1 . . Garrison Access 1 | . . . . . 1 . . Machines Repaired . | . . . . . . . . Machines Dismantled . | . . . . . . . . Machines Sabotaged . | . . . . . . . . Overloaded Fab Kills . | . . . . . . . . Hacking | -11 -10 -10 -7 -7 -5 -5 -5 --------- Run | Yrd Mat Sub Rec Scr Fac Was Fac Machines Accessed 42 | . 8 3 14 3 13 . 1 Terminals 21 | . 7 . 6 . 8 . . Fabricators 2 | . . . . . 2 . . Repair Stations . | . . . . . . . . Recycling Units 12 | . 1 . 8 . 2 . 1 Scanalyzers . | . . . . . . . . Garrison Access 1 | . . . . . 1 . . Total Hacks 120 | . 22 6 37 14 39 . 2 Successful 66 | . 15 6 21 14 10 . . Failed 53 | . 7 . 15 . 29 . 2 Catastrophic 11 | . 1 . 3 . 7 . . Database Lockouts 1 | . . . 1 . . . . Manual 62 | . 18 . 19 . 25 . . Terminals 65 | . 20 . 17 . 28 . . Fabricators 4 | . . . . . 4 . . Repair Stations . | . . . . . . . . Recycling Units 30 | . 2 . 20 . 6 . 2 Scanalyzers . | . . . . . . . . Garrison Access 1 | . . . . . 1 . . Terminal Hacks 32 | . 5 6 4 14 3 . . Record 17 | . . 4 . 13 . . . Part Schematic 1 | . 1 . . . . . . Robot Schematic 1 | . 1 . . . . . . Robot Analysis 3 | . . . 2 . 1 . . Prototype ID Bank 1 | . . . 1 . . . . Open Door 1 | . . 1 . . . . . Terminal Index 1 | . . . . . 1 . . Unreport Threat 1 | . . . . . 1 . . Locate Traps 1 | . 1 . . . . . . Zone Layout 3 | . 2 . 1 . . . . Proto ID Catalog 1 | . . . . 1 . . . Release Object 1 | . . 1 . . . . . Fabricator Hacks 1 | . . . . . 1 . . Network Status 1 | . . . . . 1 . . Repair Station Hacks . | . . . . . . . . Recycling Unit Hacks 11 | . 1 . 8 . 2 . . Retrieve Components 11 | . 1 . 8 . 2 . . Scanalyzer . | . . . . . . . . Garrison Access Hacks 1 | . . . . . 1 . . Seal Access 1 | . . . . . 1 . . Unauthorized Hacks 21 | . 9 . 9 . 3 . . Terminals 11 | . 8 . 2 . 1 . . Botnet 5 | . 2 . 2 . 1 . . Operators 1 | . 1 . . . . . . Skim 5 | . 5 . . . . . . Fabricators . | . . . . . . . . Repair Stations . | . . . . . . . . Recycling Units 10 | . 1 . 7 . 2 . . Tunnel 8 | . 1 . 7 . . . . Fedlink 2 | . . . . . 2 . . Scanalyzers . | . . . . . . . . Garrison Access . | . . . . . . . . Data Cores Recovered . | . . . . . . . . Used . | . . . . . . . . Hacking Detections 24 | . 7 . 8 . 8 . 1 Full Trace Events 5 | . . . 1 . 4 . . Feedback Events . | . . . . . . . . Feedback Blocked . | . . . . . . . . Robot Schematics Acquired 1 | . 1 . . . . . . Robots Built . | . . . . . . . . Authchips . | . . . . . . . . Time . | . . . . . . . . Total Robot Build Rating . | . . . . . . . . Part Schematics Acquired 4 | . 1 . . . 1 1 1 Parts Built . | . . . . . . . . Authchips . | . . . . . . . . Time . | . . . . . . . . Total Part Build Rating . | . . . . . . . . Parts Repaired . | . . . . . . . . Time . | . . . . . . . . Parts Recycled . | . . . . . . . . Recycled Matter . | . . . . . . . . Retrieved Matter . | . . . . . . . . Retrieved Components 30 | . 6 . 21 . 3 . . Parts Scanalyzed . | . . . . . . . . Part Schematics Acquired . | . . . . . . . . Parts Damaged . | . . . . . . . . Bothacking | -11 -10 -10 -7 -7 -5 -5 -5 ------------ Run | Yrd Mat Sub Rec Scr Fac Was Fac Used RIF Installer . | . . . . . . . . Robots Hacked 9 | . . . . 3 6 . . Non-combat 7 | . . . . 1 6 . . Combat 2 | . . . . 2 . . . Robot Hacks Applied 11 | . . . . 3 8 . . parse_system 4 | . . . . 3 1 . . no_distress 3 | . . . . . 3 . . find_chute 3 | . . . . . 3 . . find_fabricator 1 | . . . . . 1 . . Relay Couplers Released . | . . . . . . . . Fabnet Peak Effective % . | . . . . . . . . Robots Rewired 6 | . . . 5 . 1 . . Allies Hacked . | . . . . . . . . Hacks Repelled . | . . . . . . . . Allies | -11 -10 -10 -7 -7 -5 -5 -5 -------- Run | Yrd Mat Sub Rec Scr Fac Was Fac Total Allies 16 | . . 10 5 . 1 . . Largest Group 9 | . . 9 5 3 3 . . Highest-Rated Group 171 | . . 171 120 88 88 . . Highest-Rated Ally 42 | . . 19 40 40 42 . . Total Orders . | . . . . . . . . Ally Attacks 97 | . . 64 13 . 20 . . Total Damage 1453 | . . 842 197 . 414 . . Kills 18 | . . 11 2 . 5 . . Allies Corrupted . | . . . . . . . . Allies Melted . | . . . . . . . . Intel | -11 -10 -10 -7 -7 -5 -5 -5 ------- Run | Yrd Mat Sub Rec Scr Fac Was Fac Active Infowar (turns) 11333 | 4 2263 1009 2585 4482 848 71 71 Optics 236 | . . . . . 94 71 71 Sensors 782 | . . . . . 782 . . Terrain 384 | . 103 65 . . 216 . . Seismic 10218 | 4 2160 944 2585 4482 43 . . Machine Analysis 981 | . . . . . 839 71 71 ECM 6 | . . . . . 6 . . Robot Analysis Total 3 | . . . 2 . 1 . . Derelict Logs Recovered 4 | . . . . 4 . . . Drone Launches . | . . . . . . . . Drone Recoveries . | . . . . . . . . Exploration | -11 -10 -10 -7 -7 -5 -5 -5 ------------- Run | Yrd Mat Sub Rec Scr Fac Was Fac Turns Passed 16072 | 79 2288 5648 2585 4482 848 71 71 Spaces Moved 6282 | 38 785 1675 756 1432 1394 144 58 Core 179 | 2 . . . . 163 14 . Treads 4684 | 36 785 1675 756 1432 . . . Legs . | . . . . . . . . Wheels . | . . . . . . . . Hover . | . . . . . . . . Flight 1419 | . . . . . 1231 130 58 Fastest Speed 30 | 50 160 320 320 160 30 40 40 Average Speed 234 | 154 249 320 320 302 38 40 40 Slowest Speed 320 | 160 320 320 320 320 113 50 40 Overloaded Moves . | . . . . . . . . Propulsion Burnouts . | . . . . . . . . Robots Hopped 3 | . . . . . 3 . . Potential Cave-ins . | . . . . . . . . Cave-ins Triggered . | . . . . . . . . Exploration Rate (%) 59 | 3 92 79 95 85 43 77 2 Regions Visited 7 Branch Regions 3 Pre-discovered Areas 14 | . 3 1 7 2 1 . . Known Exits Taken 2 | . 1 . . 1 . . . Unknown Exits Taken 3 | 1 . 1 1 . . . . Scrap Searched 15 | . . 6 . 9 . . . Spaces Dug 58 | . 2 14 . . 42 . . Terrain Destroyed 112 | . 2 47 2 . 61 . . Melee 19 | . . . . . 19 . . Projectile 10 | . 2 2 2 . 4 . . AOE 83 | . . 45 . . 38 . . Terrain Rammed . | . . . . . . . . Walls Destroyed . | . . . . . . . . Machines Disabled . | . . . . . . . . Actions | -11 -10 -10 -7 -7 -5 -5 -5 --------- Run | Yrd Mat Sub Rec Scr Fac Was Fac Total 7330 | 51 1005 1914 901 1593 1628 154 84 Wait 483 | 1 125 144 35 107 53 9 9 Move 6270 | 37 784 1674 755 1431 1388 143 58 Hop 3 | . . . . . 3 . . Pick Up 88 | 4 21 15 15 18 15 . . Fast Attach 21 | 7 1 . . 1 10 2 . Attach 27 | . 5 2 . 2 18 . . Detach 9 | . 1 . . 2 6 . . Swap 52 | . 12 14 1 3 22 . . Drop 79 | . 4 24 2 26 21 . 2 Fire 114 | 2 52 41 9 . 10 . . Melee 76 | . . . . 3 58 . 15 Ram . | . . . . . . . . Kick . | . . . . . . . . Crush 5 | . . . 5 . . . . Escape Stasis . | . . . . . . . . Rewire 79 | . . . 79 . . . . Trap 19 | . . . . . 19 . . Miscellaneous 5 | . . . . . 5 . . Route ------- -11/Scrapyard -10/Materials (discovered 5 exits: *Mat x3 / *Min / *Sub) -10/Subcaves (discovered 3 exits: [*Mat x2] / *Rec) -7/Recycling (discovered 2 exits: *Fac / *Scr) -7/Scraptown -5/Factory (discovered 2 exits: [*Fac] / *Upp) -5/Waste -5/Factory (discovered 1 exit: *Upp) History --------- Turn | Location | Event 15 | -11/Scrapyard | Discovered new exit (range 16) 80 | -11/Scrapyard | Entered Materials 321 | -10/Materials | Build established: Mutant 623 | -10/Materials | Discovered new exit (range 12) 677 | -10/Materials | Discovered new exit (range 14) 972 | -10/Materials | Loaded intel: 8 terminal locations 1050 | -10/Materials | Loaded intel: 10 trap records 1179 | -10/Materials | Identified exit to Mines 1230 | -10/Materials | Identified exit to Materials 1272 | -10/Materials | Learned location of 1 exit from Recycling 1304 | -10/Materials | Learned location of Recycling (-7) 1329 | -10/Materials | Lost 3 parts (1p2w) 1344 | -10/Materials | Identified exit to Subcaves 1394 | -10/Materials | Learned location of 2 exits from Mines 1452 | -10/Materials | Learned location of Mines (-10) 1521 | -10/Materials | Learned Storage emergency access door positions 2368 | -10/Materials | Entered Subcaves 2369 | -10/Subcaves | Approached by a straggling Scientist 2621 | -10/Subcaves | Visited Clippyterm 2631 | -10/Subcaves | Learned location of Deep Caves (-6) 2631 | -10/Subcaves | Learned Factory trap positions 3385 | -10/Subcaves | Visited triangular shrine 3404 | -10/Subcaves | Found Prototype Device 3405 | -10/Subcaves | Identified V3-11A's Pendant 3410 | -10/Subcaves | Befriended Subdweller 3616 | -10/Subcaves | Disturbed a concealed Subdweller 3620 | -10/Subcaves | Befriended Subdweller 4015 | -10/Subcaves | Befriended Subdweller 4030 | -10/Subcaves | Befriended Subdweller 4085 | -10/Subcaves | Befriended Subdweller 4085 | -10/Subcaves | Befriended Subdweller 4097 | -10/Subcaves | Shifting Twisted Machinery released Battle Cannon 4111 | -10/Subcaves | Discovered new exit (range 13) 4115 | -10/Subcaves | Befriended Subdweller 4176 | -10/Subcaves | Shifting Twisted Machinery released Sub. Laser 4190 | -10/Subcaves | Befriended Subdweller 4275 | -10/Subcaves | Befriended Subdweller 4628 | -10/Subcaves | Shifting Twisted Machinery released Battle Rifle 4649 | -10/Subcaves | Shifting Twisted Machinery released Spk. Treads 4828 | -10/Subcaves | Shifting Twisted Machinery released Mak. Hacking Suite 4846 | -10/Subcaves | Core integrity fell below 50% 4870 | -10/Subcaves | Discovered new exit (range 15) 4900 | -10/Subcaves | Lost 4 allies 4980 | -10/Subcaves | Shifting Twisted Machinery released Riot Gun 5200 | -10/Subcaves | Befriended Subdweller 5356 | -10/Subcaves | Discovered new exit (range 14) 5490 | -10/Subcaves | A swath of the cavern ceiling suddenly collapsed 6138 | -10/Subcaves | Found SUBCON Basin 8016 | -10/Subcaves | Entered Recycling 8016 | -7/Recycling | Accompanied by 1 ally 8017 | -7/Recycling | Identified exit to Factory 8719 | -7/Recycling | Scanned before Scraplab entrance 8763 | -7/Recycling | Entered Scraplab 8807 | -7/Recycling | Build established: Commander-Mutant 9909 | -7/Recycling | Build established: Mutant 10596 | -7/Recycling | Discovered new exit (range 2) 10601 | -7/Recycling | Entered Scraptown 10601 | -7/Scraptown | Accompanied by 3 allies 10900 | -7/Scraptown | Scanned Subdweller tech in exchange for log data 10906 | -7/Scraptown | Learned Research non-interactive machine intel 10913 | -7/Scraptown | Learned location of 1 exit from Upper Caves 10916 | -7/Scraptown | Learned location of Warlord (-5) 11335 | -7/Scraptown | Delivered V3-11A's Pendant to T0-NE2 in exchange for information 11692 | -7/Scraptown | Visited Bundlers 11920 | -7/Scraptown | Visited Shadow of the Wyrm 11939 | -7/Scraptown | Visited The Evicted 11975 | -7/Scraptown | Visited Symbiants 12049 | -7/Scraptown | Visited Fellowship of the Rings 12075 | -7/Scraptown | Visited Cyclists 12889 | -7/Scraptown | Visited UFD Registry 12889 | -7/Scraptown | Registered with UFD as "Kinetitail" 12992 | -7/Scraptown | Visited Observation Area 13120 | -7/Scraptown | Visited Chapter 10 13184 | -7/Scraptown | Visited DA-N13 Charitable Foundation 13200 | -7/Scraptown | Found DCF Scrap (28 items) 13347 | -7/Scraptown | Visited Scrap Suit Storage 13417 | -7/Scraptown | Visited Infowarlord's Domain 13440 | -7/Scraptown | Found Spectral Analyzer 13505 | -7/Scraptown | Visited Abandonware Association 13528 | -7/Scraptown | Learned abandonware demo "OVRCLOCK.EXE" 13537 | -7/Scraptown | Learned abandonware demo "REBOOT5.EXE" 13617 | -7/Scraptown | Visited Derelict Rescue Squad 13668 | -7/Scraptown | Visited Science Guys 13828 | -7/Scraptown | Visited A0-MCA Data Center 13868 | -7/Scraptown | Given a D+ rating by A0-MCA 14444 | -7/Scraptown | Found A0-MCA's Component Scanner 14977 | -7/Scraptown | Met Optimus 14977 | -7/Scraptown | Accepted into 0bPrime 15071 | -7/Scraptown | Discovered exit to Factory (range 5) 15083 | -7/Scraptown | Entered Factory 15083 | -5/Factory | Accompanied by 3 allies 15083 | -5/Factory | Evolved 10 slots: Propulsion x3, Utility x7 15084 | -5/Factory | Loaded intel: 72 trap records 15347 | -5/Factory | Loaded intel: 8 recycling unit locations 15365 | -5/Factory | Learned location of Protoforge (-2) 15411 | -5/Factory | Discovered new exit (range 13) 15415 | -5/Factory | Identified exit to Upper Caves 15733 | -5/Factory | Discovered new exit (range 16) 15877 | -5/Factory | Lost 11 parts (1p6n1u3w) 15887 | -5/Factory | Core integrity fell below 50% 15931 | -5/Factory | Manually triggered Chute Trap 15931 | -5/Factory | Sucked down chute 15931 | -5/Factory | Entered Waste 15935 | -5/Waste | Lost 4 parts (4u) 15957 | -5/Waste | Spotted C-40 Crusher 15975 | -5/Waste | Spotted C-40 Crusher 15981 | -5/Waste | Spotted C-40 Crusher 15986 | -5/Waste | Spotted C-40 Crusher 15995 | -5/Waste | Spotted C-40 Crusher 15998 | -5/Waste | Discovered new exit (range 11) 16002 | -5/Waste | Identified exit to Factory 16002 | -5/Waste | Entered Factory 16003 | -5/Factory | Discovered exit to Upper Caves (range 19) 16044 | -5/Factory | Core integrity fell below 20% 16063 | -5/Factory | Tech Extrapolator generated special schematic: Deep Structural Scanner 16073 | -5/Factory | Destroyed by P-70 Sage with High-powered Shock Rifle Last Messages --------------- 16023_ ALERT: Hostiles spotted, dispatching reinforcements to Terminal F018. 16023_ ALERT: All DSF locations entering lockdown mode. 16026_ >> Machine Analyzer network decryption results: 16026_ Scanalyzer x1 16051_ System corrupted: Component data lost. 16060_ Dropped Field Propulsion Array. 16060_ Dropped Broken Impulse Thruster Array. 16061_ P-70 Sage Tesla Rifle severed. 16063_ Tech Extrapolator generates new schematic "Deep Structural Scanner". Influences: Structural Scanner, Terrain Scanner, Terrain Scan Processor. 16065_ Mak. Hacking Suite destroyed. 16066_ Destroyed Hpw. Shock Rifle. 16066_ P-70 Sage destroyed. 16069_ System corrupted: Component data lost. 16069_ R-10 Processor collects Tesla Rifle. Map ----- +----------------------------------------------------+ | ????????????????????????????""???????????????????? | | ????????????????????????????"""??????????????????? | | ???????????????????????"""???S"??????????????????? | | ???????????????????????"""???????????????????????? | | ???????????????????????"""???????????????????????? | | ?????????????????????????????????????????????????? | | ???????????????????????"""?"""???????????????????? | | ???????????????????????"""?"""???????????????????? | | ???????????????????????"""?"""???????????????????? | | ?????????????????????????????????????????????????? | | ?????????????????????????????????????????????????? | | ?????????????????????????????????????????????????? | | ?????????????????????????????????????????????????? | | ?????????????????????????????????????????????????? | | ?????????????????????????????????????????????????? | | ?????????????????????????????????????????????????? | | ??????????????????????????????########???????????? | | ??????????????????????????????# """ #???????????? | | ??????????????????????????????# """ ]#???????????? | | ????????????????????????####### """ #???????????? | | ????????????????????????? # #???????????? | | ?????????????????????###### #| ????????????? | | ?????????????????????# # # ??????????????? | | ?????????????????????# !#% ##+#######?????????? | | ?????#???????????????# Rp +?????????? | | ?????# ??????????????# @# #######?????????? | | ?????# ?????????????# # #??????????????## | | ?????# ????????????###### #???????????? # | | ?????# ?????????######## #?????????? "" + | | ?????# ????????# #####????! """ # | | ?????# ######### # ### T" # | | ?????# > + """ # | | ?????# ### ### "" # | | ?????# #?## ##???? # | | ?????# ########+###??# #??????? [ # | | ?????# #????? ???# #?????????#### | | ?????### T######+####### #??# #????????????? | | ???????#??# # ! #??# #????????????? | | ??????????# """ # #??# #????????????? | | ??????????# [ "Y" # #??# ????????????? | | ??????????# " " #########??# ????????????? | | ??????????# = #??????????# ????????????? | | ??????????# #?????????? ????????????? | | ??????????# "" "" #?????????? ????????????? | | ??????????# "" "" #?????????? ????????????? | | ??????????# """ """ #?????????? ????????????? | | ??????????# """ """ #??????????###????????????? | | ??????????# """ """ #?????????????????????????? | | ??????????# #?????????????????????????? | | ??????????##############?????????????????????????? | +----------------------------------------------------+ Best States ------------- Heat Dissipation 40 Energy Generation 15 Energy Capacity 240 Matter Stores 300 Matter Capacity 300 Sight Range 24 Robot Scan Range 15 Terrain Scan Range 20 Terrain Scan Density 10 ECM Strength 2 Armor Coverage 150 Propulsion Shielding 66 Utility Shielding 90 Evasion (%) 64 Recoil Reduction 2 Offensive Hacking 11 Defensive Hacking 10 Item Schematics ----------------- Huge Storage Unit | -10/Materials | Hacked Mak. Power Source | -5/Factory | Extrapolated Mak. Coolant Network | -5/Waste | Extrapolated Deep Structural Scanner | -5/Factory | Extrapolated Robot Schematics ------------------ M-13 Machinist | -10/Materials | Hacked Fabricated ------------ Nothing Repaired ---------- Nothing Alien Tech Used ----------------- None Achievements -------------- None Challenges ------------ None Game ------ Seed EnergySurveybotThrower Manual? 0 Play Time 01:03:55 Cumulative 513.4 hours Start 2025.07.04 @ 19:59:03 End 2025.07.04 @ 21:02:48 Sessions 1 Manual Loads 0 Difficulty Rogue Special Mode None Game No. 272 Rogue 209 Adventurer 63 Explorer 0 Win Type - Total 9 Types 8/0/0/1/0/0/0/0/0/0 Lore% 90 Gallery% 82 Achievement% 67 Wizard Run 0 Options --------- Layout 2 ASCII 0 Keyboard 1 Movement Numpad Keybinds 0 Fullscreen 2 Font 24/Terminus Map View 50x44 Zoom Use 0% Tactical HUD 1 Map Filters NONE Filters NONE Steam 1 RUN: 2ea78268-402d-46f7-836f-04bc2cd013f1